fUST/lending_fUST_20250709
["ID","MTS","AMOUNT","RATE_DAILY","PERIOD"]
[370469441,1752033045547,-500.0,0.00019973,2]
[370469442,1752033045557,-500.0,0.00019973,2]
[370469443,1752033045566,-503.19112389,0.00019973,2]
[370469444,1752033045576,-500.0,0.00019973,2]
[370469445,1752033045585,-501.29073386,0.00019973,2]
[370469446,1752033045595,-501.02388313,0.00019973,2]
[370469447,1752033045604,-500.0,0.00019994,2]
[370469448,1752033045614,-151.986636,0.00019999,2]
[370469449,1752033045623,-151.0,0.00019999,2]
[370469450,1752033045633,-151.0,0.00019999,2]
[370469451,1752033045642,-327.636252,0.00019999,2]
[370469452,1752033045651,-248.621555,0.00019999,2]
[370469453,1752033045660,-151.0,0.00019999,2]
[370469454,1752033045669,-151.0,0.00019999,2]
[370469455,1752033045680,-242.407787,0.00019999,2]
[370469456,1752033045689,-242.407787,0.00019999,2]
[370469457,1752033045699,-460.0,0.00019999,2]
[370469458,1752033045711,-151.529543,0.00019999,2]
[370469459,1752033045721,-460.0,0.00019999,2]
[370469460,1752033045731,-460.0,0.00019999,2]
[370469461,1752033045743,-1142.49,0.00019999,2]
[370469462,1752033045754,-944.5,0.00019999,2]
[370469463,1752033045766,-460.0,0.00019999,2]
[370469464,1752033045777,-777.49,0.00019999,2]
[370469465,1752033045787,-460.0,0.00019999,2]
[370469466,1752033045798,-460.0,0.00019999,2]
[370469467,1752033045807,-1647.44,0.00019999,2]
[370469468,1752033045817,-460.0,0.00019999,2]
[370469469,1752033045827,-597.38,0.00019999,2]
[370469470,1752033045838,-460.0,0.00019999,2]
[370469471,1752033045861,-460.0,0.00019999,2]
[370469472,1752033045871,-892.67,0.00019999,2]
[370469473,1752033045881,-460.0,0.00019999,2]
[370469474,1752033045891,-3315.53,0.00019999,2]
[370469475,1752033045901,-920.09,0.00019999,2]
[370469476,1752033045910,-151.0,0.0002,2]
[370469477,1752033045920,-460.0,0.0002,2]
[370469478,1752033045931,-460.0,0.0002,2]
[370469479,1752033045942,-151.0,0.0002,2]
[370469480,1752033045951,-328.27,0.0002,2]
[370469481,1752033045961,-100139.0,0.0002,2]
[370469482,1752033045971,-460.0,0.0002,2]
[370469483,1752033045982,-234.73364884,0.0002,2]
[370469485,1752033045991,-500.0,0.0002,2]
[370469487,1752033046002,-578.67,0.0002,2]
[370469488,1752033046012,-460.0,0.0002,2]
[370469489,1752033046023,-186.34694371,0.0002,2]
[370469490,1752033046032,-460.0,0.0002,2]
[370469491,1752033046042,-460.0,0.0002,2]
[370469492,1752033046052,-227.01162962,0.0002,2]
[370469493,1752033046062,-460.0,0.0002,2]
[370469494,1752033046071,-209.69945267,0.0002,2]
[370469495,1752033046081,-460.0,0.0002,2]
[370469496,1752033046090,-460.0,0.0002,2]
[370469497,1752033046100,-460.0,0.0002,2]
[370469498,1752033046109,-460.0,0.0002,2]
[370469500,1752033046119,-460.0,0.0002,2]
[370469501,1752033046129,-417.35877617,0.0002,2]
[370469502,1752033046140,-460.0,0.0002,2]
[370469504,1752033046149,-460.0,0.0002,2]
[370469506,1752033046159,-407.51219643,0.0002,2]
[370469507,1752033046168,-481.24664277,0.0002,2]
[370469508,1752033046178,-151.572238,0.0002,2]
[370469509,1752033046188,-486.43,0.0002,2]
[370469510,1752033046197,-460.0,0.0002,2]
[370469511,1752033046207,-460.0,0.0002,2]
[370469512,1752033046218,-460.0,0.0002,2]
[370469513,1752033046228,-460.0,0.0002,2]
[370469514,1752033046239,-460.0,0.0002,2]
[370469515,1752033046251,-460.0,0.0002,2]
[370469516,1752033046261,-460.0,0.0002,2]
[370469517,1752033046271,-205.39066543,0.0002,2]
[370469518,1752033046283,-151.0,0.0002,2]
[370469519,1752033046294,-460.0,0.0002,2]
[370469521,1752033046303,-151.0,0.0002,2]
[370469522,1752033046313,-151.647156,0.0002,2]
[370469524,1752033046323,-582.23,0.0002,2]
[370469525,1752033046332,-460.0,0.0002,2]
[370469526,1752033046343,-460.0,0.0002,2]
[370469527,1752033046352,-151.0,0.0002,2]
[370469528,1752033046362,-460.0,0.0002,2]
[370469529,1752033046372,-151.0,0.0002,2]
[370469530,1752033046381,-469.89836284,0.0002,2]
[370469531,1752033046391,-460.0,0.0002,2]
[370469533,1752033046406,-460.0,0.0002,2]
[370469534,1752033046416,-162.39,0.0002,2]
[370469535,1752033046425,-460.0,0.0002,2]
[370469536,1752033046436,-460.0,0.0002,2]
[370469537,1752033046446,-460.0,0.0002,2]
[370469538,1752033046455,-151.0,0.0002,2]
[370469539,1752033046465,-151.0,0.0002,2]
[370469540,1752033046476,-151.0,0.0002,2]
[370469541,1752033046486,-460.0,0.0002,2]
[370469542,1752033046496,-460.0,0.0002,2]
[370469543,1752033046505,-460.0,0.0002,2]
[370469544,1752033046515,-460.0,0.0002,2]
[370469545,1752033046526,-151.0,0.0002,2]
[370469546,1752033046536,-470.80325457,0.0002,2]
[370469547,1752033046546,-151.0,0.0002,2]
[370469548,1752033046555,-470.02337387,0.0002,2]
[370469549,1752033046566,-435.33479534,0.0002,2]
[370469550,1752033046575,-460.0,0.0002,2]
[370469551,1752033046587,-151.0,0.0002,2]
[370469552,1752033046596,-151.0,0.0002,2]
[370469553,1752033046606,-151.315677,0.0002,2]
[370469554,1752033046616,-460.0,0.0002,2]
[370469555,1752033046626,-300.0,0.0002,2]
[370469556,1752033046635,-151.306496,0.0002,2]
[370469557,1752033046647,-472.49,0.0002,2]
[370469558,1752033046657,-460.0,0.0002,2]
[370469559,1752033046667,-460.0,0.0002,2]
[370469560,1752033046678,-257.595622,0.0002,2]
[370469561,1752033046687,-904.84,0.0002,2]
[370469562,1752033046698,-460.0,0.0002,2]
[370469563,1752033046708,-151.0,0.0002,2]
[370469564,1752033046717,-257.595622,0.0002,2]
[370469565,1752033046728,-472.26780812,0.0002,2]
[370469566,1752033046739,-460.0,0.0002,2]
[370469567,1752033046749,-460.0,0.0002,2]
[370469568,1752033046759,-460.0,0.0002,2]
[370469569,1752033046771,-151.0,0.0002,2]
[370469570,1752033046781,-151.0,0.0002,2]
[370469571,1752033046790,-152.052328,0.0002,2]
[370469572,1752033046800,-151.0,0.0002,2]
[370469573,1752033046810,-466.63576569,0.0002,2]
[370469574,1752033046819,-1651.11,0.0002,2]
[370469575,1752033046829,-462.42166744,0.0002,2]
[370469576,1752033046839,-460.0,0.0002,2]
[370469577,1752033046849,-462.61092801,0.0002,2]
[370469578,1752033046859,-191.589992,0.0002,2]
[370469579,1752033046868,-151.0,0.0002,2]
[370469580,1752033046878,-460.0,0.0002,2]
[370469581,1752033046888,-191.589992,0.0002,2]
[370469582,1752033046898,-460.0,0.0002,2]
[370469583,1752033046908,-460.0,0.0002,2]
[370469584,1752033046917,-460.0,0.0002,2]
[370469585,1752033046927,-151.0,0.0002,2]
[370469586,1752033046938,-460.0,0.0002,2]
[370469587,1752033046948,-151.0,0.0002,2]
[370469588,1752033046958,-460.0,0.0002,2]
[370469589,1752033046968,-2403.74,0.0002,2]
[370469590,1752033046977,-511.13,0.0002,2]
[370469591,1752033046986,-460.0,0.0002,2]
[370469592,1752033046996,-460.0,0.0002,2]
[370469593,1752033047006,-460.0,0.0002,2]
[370469594,1752033047016,-460.0,0.0002,2]
[370469595,1752033047025,-460.0,0.0002,2]
[370469596,1752033047034,-697.11,0.0002,2]
[370469597,1752033047045,-460.0,0.0002,2]
[370469598,1752033047055,-460.0,0.0002,2]
[370469599,1752033047065,-460.0,0.0002,2]
[370469600,1752033047185,-460.0,0.0002,2]
[370469601,1752033047195,-597.91,0.0002,2]
[370469602,1752033047205,-460.0,0.0002,2]
[370469603,1752033047216,-460.0,0.0002,2]
[370469604,1752033047226,-327.71838445,0.0002,2]
[370469605,1752033047237,-460.0,0.0002,2]
[370469606,1752033047247,-460.0,0.0002,2]
[370469607,1752033047256,-334.527495,0.0002,2]
[370469608,1752033047267,-1548.8,0.0002,2]
[370469609,1752033047277,-334.527495,0.0002,2]
[370469610,1752033047287,-151.41407807,0.0002,2]
[370469611,1752033047296,-566.20492236,0.0002,2]
[370469612,1752033047305,-467.95227676,0.0002,2]
[370469613,1752033047315,-151.0,0.0002,2]
[370469614,1752033047324,-460.0,0.0002,2]
[370469615,1752033047333,-460.0,0.0002,2]
[370469616,1752033047344,-460.0,0.0002,2]
[370469617,1752033047354,-1657.22,0.0002,2]
[370469618,1752033047366,-460.0,0.0002,2]
[370469619,1752033047376,-466.96522979,0.0002,2]
[370469620,1752033047386,-2829.380721,0.0002,2]
[370469621,1752033047400,-470.24643165,0.0002,2]
[370469622,1752033047410,-2829.380721,0.0002,2]
[370469623,1752033047420,-564.76,0.0002,2]
[370469624,1752033047431,-460.0,0.0002,2]
[370469625,1752033047441,-2312.24,0.0002,2]
[370469626,1752033047451,-460.0,0.0002,2]
[370469627,1752033047460,-151.0,0.0002,2]
[370469628,1752033047471,-460.0,0.0002,2]
[370469629,1752033047481,-635.73,0.0002,2]
[370469630,1752033047490,-460.0,0.0002,2]
[370469631,1752033047499,-460.0,0.0002,2]
[370469632,1752033047509,-151.0,0.0002,2]
[370469633,1752033047519,-460.0,0.0002,2]
[370469634,1752033047528,-151.0,0.0002,2]
[370469635,1752033047537,-460.0,0.0002,2]
[370469636,1752033047546,-460.0,0.0002,2]
[370469637,1752033047555,-1294.35,0.0002,2]
[370469638,1752033047564,-460.0,0.0002,2]
[370469639,1752033047574,-460.0,0.0002,2]
[370469640,1752033047584,-151.0,0.0002,2]
[370469641,1752033047594,-242.504613,0.0002,2]
[370469642,1752033047603,-151.0,0.0002,2]
[370469643,1752033047614,-521.23,0.0002,2]
[370469644,1752033047623,-460.0,0.0002,2]
[370469645,1752033047634,-460.0,0.0002,2]
[370469646,1752033047644,-460.0,0.0002,2]
[370469647,1752033047653,-460.0,0.0002,2]
[370469648,1752033047662,-242.504613,0.0002,2]
[370469649,1752033047671,-1027.86,0.0002,2]
[370469650,1752033047680,-460.0,0.0002,2]
[370469651,1752033047689,-460.0,0.0002,2]
[370469652,1752033047699,-2577.55,0.0002,2]
[370469653,1752033047708,-151.0,0.0002,2]
[370469654,1752033047718,-460.0,0.0002,2]
[370469655,1752033047727,-460.0,0.0002,2]
[370469656,1752033047736,-194.734418,0.0002,2]
[370469657,1752033047746,-460.0,0.0002,2]
[370469658,1752033047755,-151.0,0.0002,2]
[370469659,1752033047765,-194.734418,0.0002,2]
[370469660,1752033047775,-460.0,0.0002,2]
[370469661,1752033047784,-151.0,0.0002,2]
[370469662,1752033047793,-460.0,0.0002,2]
[370469663,1752033047802,-567.79,0.0002,2]
[370469664,1752033047812,-460.0,0.0002,2]
[370469665,1752033047822,-460.0,0.0002,2]
[370469666,1752033047834,-897.68,0.0002,2]
[370469667,1752033047843,-460.0,0.0002,2]
[370469668,1752033047855,-1193.5,0.0002,2]
[370469669,1752033047865,-798.67117612,0.00020019,2]
[370469670,1752033047875,-160.0,0.00020033,2]
[370469671,1752033047885,-214.14293035,0.00020033,2]
[370469672,1752033047895,-837.99933892,0.00020033,2]
[370469673,1752033047905,-12589.12013084,0.00020033,2]
[370469674,1752033047915,-230.53906051,0.00020033,2]
[370469675,1752033047924,-848.55005627,0.00020033,2]
[370469676,1752033047933,-160.0,0.00020033,2]
[370469677,1752033047943,-215.27775528,0.00020033,2]
[370469678,1752033047953,-160.0,0.00020033,2]
[370469679,1752033047962,-160.0,0.00020046,2]
[370469680,1752033047972,-960.99548709,0.00020074,2]
[370469681,1752033047982,-500.0,0.0002009,2]
[370469682,1752033047991,-152.725161,0.00020095,2]
[370469683,1752033048000,-151.0,0.00020095,2]
[370469684,1752033048010,-327.636252,0.00020095,2]
[370469685,1752033048020,-151.0,0.00020095,2]
[370469686,1752033048036,-289.114991,0.00020095,2]
[370469687,1752033048056,-242.407787,0.00020095,2]
[370469688,1752033048072,-242.407787,0.00020095,2]
[370469689,1752033048088,-151.0,0.000201,3]
[370469690,1752033048105,-4624.6139069,0.00020107,2]
[370469691,1752033048124,-760.07289996,0.00020165,2]
[370469692,1752033048141,-500.0,0.00020185,2]
[370469693,1752033048159,-444.922646,0.00020187,2]
[370469694,1752033048175,-1005.96527619,0.0002019,2]
[370469695,1752033048192,-151.0,0.000202,3]
[370469696,1752033048207,-1500.0,0.00020268,2]
[370469697,1752033048225,-232.04314632,0.00020273,2]
[370469698,1752033048240,-460.0,0.00020273,2]
[370469699,1752033048251,-460.0,0.00020273,2]
[370469700,1752033048266,-401.48676369,0.00020273,2]
[370469701,1752033048282,-422.82056297,0.00020273,2]
[370469702,1752033048299,-575.04756073,0.00020273,2]
[370469703,1752033048316,-244.1856744,0.00020273,2]
[370469704,1752033048333,-348.24,0.00020273,2]
[370469705,1752033048352,-460.0,0.00020273,2]
[370469706,1752033048364,-460.0,0.00020273,2]
[370469707,1752033048376,-460.0,0.00020273,2]
[370469708,1752033048394,-505.13,0.00020273,2]
[370469709,1752033048414,-460.0,0.00020273,2]
[370469710,1752033048426,-486.43,0.00020273,2]
[370469711,1752033048440,-460.0,0.00020273,2]
[370469712,1752033048456,-460.0,0.00020273,2]
[370469713,1752033048469,-460.0,0.00020273,2]
[370469714,1752033048484,-460.0,0.00020273,2]
[370469715,1752033048498,-460.0,0.00020273,2]
[370469716,1752033048512,-460.0,0.00020273,2]
[370469717,1752033048526,-554.79466765,0.00020273,2]
[370469718,1752033048539,-582.23,0.00020273,2]
[370469719,1752033048552,-460.0,0.00020273,2]
[370469720,1752033048566,-460.0,0.00020273,2]
[370469721,1752033048580,-467.75963039,0.00020273,2]
[370469722,1752033048594,-460.0,0.00020273,2]
[370469723,1752033048608,-460.0,0.00020273,2]
[370469724,1752033048621,-408.40729688,0.00020273,2]
[370469725,1752033048635,-216.09054788,0.00020273,2]
[370469726,1752033048649,-460.0,0.00020273,2]
[370469727,1752033048663,-460.0,0.00020273,2]
[370469728,1752033048675,-460.0,0.00020273,2]
[370469729,1752033048689,-460.0,0.00020273,2]
[370469730,1752033048703,-460.0,0.00020273,2]
[370469731,1752033048716,-460.0,0.00020273,2]
[370469732,1752033048729,-460.0,0.00020273,2]
[370469733,1752033048744,-460.0,0.00020273,2]
[370469734,1752033048758,-475.25506201,0.00020273,2]
[370469735,1752033048773,-460.0,0.00020273,2]
[370469736,1752033048786,-472.49,0.00020273,2]
[370469737,1752033048801,-1142.49,0.00020273,2]
[370469738,1752033048816,-460.0,0.00020273,2]
[370469739,1752033048829,-460.0,0.00020273,2]
[370469740,1752033048843,-944.5,0.00020273,2]
[370469741,1752033048857,-904.84,0.00020273,2]
[370469742,1752033048873,-558.65274081,0.00020273,2]
[370469743,1752033048886,-460.0,0.00020273,2]
[370469744,1752033048901,-460.0,0.00020273,2]
[370469745,1752033048915,-470.27777783,0.00020273,2]
[370469746,1752033048930,-460.0,0.00020273,2]
[370469747,1752033048945,-1651.11,0.00020273,2]
[370469748,1752033048959,-460.0,0.00020273,2]
[370469749,1752033048973,-460.0,0.00020273,2]
[370469750,1752033048988,-460.0,0.00020273,2]
[370469751,1752033049003,-777.49,0.00020273,2]
[370469752,1752033049017,-470.6693537,0.00020273,2]
[370469753,1752033049032,-530.61135614,0.00020273,2]
[370469754,1752033049047,-2403.74,0.00020273,2]
[370469755,1752033049061,-511.13,0.00020273,2]
[370469756,1752033049076,-460.0,0.00020273,2]
[370469757,1752033049092,-460.0,0.00020273,2]
[370469758,1752033049103,-460.0,0.00020273,2]
[370469759,1752033049112,-471.0825182,0.00020273,2]
[370469760,1752033049122,-460.0,0.00020273,2]
[370469761,1752033049132,-460.0,0.00020273,2]
[370469762,1752033049141,-697.11,0.00020273,2]
[370469763,1752033049150,-460.0,0.00020273,2]
[370469764,1752033049160,-460.0,0.00020273,2]
[370469765,1752033049169,-1647.44,0.00020273,2]
[370469766,1752033049179,-460.0,0.00020273,2]
[370469767,1752033049190,-460.0,0.00020273,2]
[370469768,1752033049200,-460.0,0.00020273,2]
[370469769,1752033049215,-516.10437343,0.00020273,2]
[370469770,1752033049225,-597.91,0.00020273,2]
[370469771,1752033049388,-460.0,0.00020273,2]
[370469772,1752033049457,-460.0,0.00020273,2]
[370469773,1752033049467,-460.0,0.00020273,2]
[370469774,1752033049478,-597.38,0.00020273,2]
[370469775,1752033049487,-460.0,0.00020273,2]
[370469776,1752033049496,-460.0,0.00020273,2]
[370469777,1752033049506,-1548.8,0.00020273,2]
[370469778,1752033049515,-467.99936835,0.00020273,2]
[370469779,1752033049524,-469.94389054,0.00020273,2]
[370469780,1752033049534,-460.0,0.00020273,2]
[370469781,1752033049543,-460.0,0.00020273,2]
[370469782,1752033049552,-892.67,0.00020273,2]
[370469783,1752033049561,-1657.22,0.00020273,2]
[370469784,1752033049571,-462.46670277,0.00020273,2]
[370469785,1752033049580,-460.0,0.00020273,2]
[370469786,1752033049589,-564.76,0.00020273,2]
[370469787,1752033049599,-2312.24,0.00020273,2]
[370469788,1752033049609,-460.0,0.00020273,2]
[370469789,1752033049619,-460.0,0.00020273,2]
[370469790,1752033049628,-460.0,0.00020273,2]
[370469791,1752033049637,-635.73,0.00020273,2]
[370469792,1752033049647,-460.0,0.00020273,2]
[370469793,1752033049657,-507.42164476,0.00020273,2]
[370469794,1752033049666,-460.0,0.00020273,2]
[370469795,1752033049675,-460.0,0.00020273,2]
[370469796,1752033049684,-460.0,0.00020273,2]
[370469797,1752033049693,-1294.35,0.00020273,2]
[370469798,1752033049702,-468.77464405,0.00020273,2]
[370469799,1752033049711,-460.0,0.00020273,2]
[370469800,1752033049721,-3315.53,0.00020273,2]
[370469801,1752033049730,-521.23,0.00020273,2]
[370469802,1752033049739,-460.0,0.00020273,2]
[370469803,1752033049749,-460.0,0.00020273,2]
[370469804,1752033049758,-460.0,0.00020273,2]
[370469805,1752033049767,-1027.86,0.00020273,2]
[370469806,1752033049777,-460.0,0.00020273,2]
[370469807,1752033049786,-460.0,0.00020273,2]
[370469808,1752033049797,-2577.55,0.00020273,2]
[370469809,1752033049806,-151.0,0.00020273,2]
[370469810,1752033049819,-460.0,0.00020273,2]
[370469811,1752033049828,-460.0,0.00020273,2]
[370469812,1752033049837,-460.0,0.00020273,2]
[370469813,1752033049847,-547.31580831,0.00020273,2]
[370469814,1752033049856,-460.0,0.00020273,2]
[370469815,1752033049866,-567.79,0.00020273,2]
[370469816,1752033049875,-920.09,0.00020273,2]
[370469817,1752033049885,-460.0,0.00020273,2]
[370469818,1752033049894,-460.0,0.00020273,2]
[370469819,1752033049904,-897.68,0.00020273,2]
[370469820,1752033049914,-460.0,0.00020273,2]
[370469821,1752033049923,-1193.5,0.00020273,2]
[370469822,1752033049934,-500.0,0.00020281,2]
[370469823,1752033049944,-151.0,0.000203,4]
[370469824,1752033049953,-4624.6139069,0.00020314,3]
[370469825,1752033049962,-151.0,0.00020314,2]
[370469826,1752033049972,-151.0,0.00020314,2]
[370469827,1752033049982,-151.936925,0.00020314,2]
[370469828,1752033049991,-151.0,0.00020314,2]
[370469829,1752033050002,-151.0,0.00020314,2]
[370469830,1752033050012,-151.0,0.00020314,2]
[370469831,1752033050022,-151.0,0.00020314,2]
[370469832,1752033050031,-4322.0,0.00020328,2]
[370469833,1752033050040,-242.0,0.00020374,2]
[370469834,1752033050050,-500.0,0.00020377,2]
[370469835,1752033050060,-151.0,0.00020377,2]
[370469836,1752033050070,-152.810957,0.00020377,2]
[370469837,1752033050079,-220.646367,0.00020377,2]
[370469838,1752033050089,-334.527495,0.00020377,2]
[370469839,1752033050098,-334.527495,0.00020377,2]
[370469840,1752033050107,-2829.380721,0.00020377,2]
[370469841,1752033050116,-2829.380721,0.00020377,2]
[370469842,1752033050125,-242.504613,0.00020377,2]
[370469843,1752033050134,-242.504613,0.00020377,2]
[370469844,1752033050143,-242.0,0.00020424,2]
[370469845,1752033050153,-760.07289996,0.00020444,2]
[370469846,1752033050164,-500.0,0.00020472,2]
[370469847,1752033050174,-242.0,0.00020496,2]
[370469848,1752033050184,-1000.0,0.00020521,2]
[370469849,1752033050194,-1000.0,0.00020521,2]
[370469850,1752033050203,-501.51349977,0.00020521,2]
[370469851,1752033050213,-1004.72484411,0.00020521,2]
[370469852,1752033050222,-1001.72208135,0.00020521,2]
[370469853,1752033050232,-315.50837465,0.00020521,2]
[370469854,1752033050241,-848.55005627,0.00020521,3]
[370469855,1752033050251,-4624.6139069,0.00020521,3]
[370469856,1752033050260,-160.0,0.00020521,3]
[370469857,1752033050270,-12589.12013084,0.00020521,3]
[370469858,1752033050279,-151.0,0.00020521,2]
[370469859,1752033050288,-155.884464,0.00020521,2]
[370469860,1752033050297,-163.870282,0.00020521,2]
[370469861,1752033050309,-151.509799,0.00020521,2]
[370469862,1752033050318,-151.0,0.00020521,2]
[370469863,1752033050328,-151.0,0.00020521,2]
[370469864,1752033050339,-151.0,0.00020521,2]
[370469865,1752033050348,-151.0,0.00020521,2]
[370469866,1752033050358,-151.0,0.00020521,2]
[370469867,1752033050368,-151.0,0.00020521,2]
[370469868,1752033050379,-257.595622,0.00020521,2]
[370469869,1752033050388,-151.0,0.00020521,2]
[370469870,1752033050399,-257.595622,0.00020521,2]
[370469871,1752033050411,-151.0,0.00020521,2]
[370469872,1752033050421,-151.0,0.00020521,2]
[370469873,1752033050430,-191.589992,0.00020521,2]
[370469874,1752033050441,-191.589992,0.00020521,2]
[370469875,1752033050450,-151.0,0.00020521,2]
[370469876,1752033050460,-151.0,0.00020521,2]
[370469877,1752033050470,-194.734418,0.00020521,2]
[370469878,1752033050480,-194.734418,0.00020521,2]
[370469879,1752033050491,-376.18,0.00020538,3]
[370469880,1752033050500,-460.0,0.00020547,2]
[370469881,1752033050510,-563.78977974,0.00020547,2]
[370469882,1752033050520,-281.7,0.00020547,2]
[370469883,1752033050530,-460.0,0.00020547,2]
[370469884,1752033050542,-475.08973069,0.00020547,2]
[370469885,1752033050553,-486.43,0.00020547,2]
[370469886,1752033050564,-460.0,0.00020547,2]
[370469887,1752033050574,-377.58487684,0.00020547,2]
[370469888,1752033050584,-460.0,0.00020547,2]
[370469889,1752033050593,-151.0,0.00020547,2]
[370469890,1752033050603,-471.40516269,0.00020547,2]
[370469891,1752033050613,-460.0,0.00020547,2]
[370469892,1752033050623,-151.0,0.00020547,2]
[370469893,1752033050632,-151.0,0.00020547,2]
[370469894,1752033050643,-198.245192,0.00020547,2]
[370469895,1752033050654,-198.245192,0.00020547,2]
[370469896,1752033050664,-582.23,0.00020547,2]
[370469897,1752033050674,-460.0,0.00020547,2]
[370469898,1752033050685,-222.602066,0.00020547,2]
[370469899,1752033050694,-460.0,0.00020547,2]
[370469900,1752033050704,-222.602066,0.00020547,2]
[370469901,1752033050714,-151.0,0.00020547,2]
[370469902,1752033050725,-151.368545,0.00020547,2]
[370469903,1752033050736,-460.0,0.00020547,2]
[370469904,1752033050746,-460.0,0.00020547,2]
[370469905,1752033050757,-460.0,0.00020547,2]
[370469906,1752033050766,-460.0,0.00020547,2]
[370469907,1752033050777,-460.0,0.00020547,2]
[370469908,1752033050787,-460.0,0.00020547,2]
[370469909,1752033050797,-460.0,0.00020547,2]
[370469910,1752033050807,-460.0,0.00020547,2]
[370469911,1752033050818,-175.40834771,0.00020547,2]
[370469912,1752033050828,-470.69813594,0.00020547,2]
[370469913,1752033050838,-472.49,0.00020547,2]
[370469914,1752033050847,-1142.49,0.00020547,2]
[370469915,1752033050856,-460.0,0.00020547,2]
[370469916,1752033050866,-460.0,0.00020547,2]
[370469917,1752033050875,-944.5,0.00020547,2]
[370469918,1752033050885,-904.84,0.00020547,2]
[370469919,1752033050894,-460.0,0.00020547,2]
[370469920,1752033050904,-460.0,0.00020547,2]
[370469921,1752033050914,-1651.11,0.00020547,2]
[370469922,1752033050924,-460.0,0.00020547,2]
[370469923,1752033050934,-474.5353023,0.00020547,2]
[370469924,1752033050943,-460.0,0.00020547,2]
[370469925,1752033050953,-777.49,0.00020547,2]
[370469926,1752033050963,-2403.74,0.00020547,2]
[370469927,1752033050972,-511.13,0.00020547,2]
[370469928,1752033050982,-460.0,0.00020547,2]
[370469929,1752033050992,-460.0,0.00020547,2]
[370469930,1752033051001,-460.0,0.00020547,2]
[370469931,1752033051012,-460.0,0.00020547,2]
[370469932,1752033051022,-460.0,0.00020547,2]
[370469933,1752033051032,-697.11,0.00020547,2]
[370469934,1752033051043,-460.0,0.00020547,2]
[370469935,1752033051053,-460.0,0.00020547,2]
[370469936,1752033051063,-1647.44,0.00020547,2]
[370469937,1752033051074,-460.0,0.00020547,2]
[370469938,1752033051085,-460.0,0.00020547,2]
[370469939,1752033051095,-460.0,0.00020547,2]
[370469940,1752033051105,-597.91,0.00020547,2]
[370469941,1752033051114,-460.0,0.00020547,2]
[370469942,1752033051124,-597.38,0.00020547,2]
[370469943,1752033051133,-460.0,0.00020547,2]
[370469944,1752033051143,-460.0,0.00020547,2]
[370469945,1752033051155,-1548.8,0.00020547,2]
[370469946,1752033051165,-460.0,0.00020547,2]
[370469947,1752033051175,-513.41487301,0.00020547,2]
[370469948,1752033051184,-892.67,0.00020547,2]